[Event "Doeberl Cup 2022"]
[Site "Canberra"]
[Date "2022.04.15"]
[Round "4.6"]
[White "Litchfield, Frederick"]
[Black "Lane, Gary W"]
[Result "0-1"]
[ECO "A80"]
[WhiteElo "2096"]
[BlackElo "2332"]
[Annotator "TA"]
[PlyCount "88"]
[EventDate "2022.04.14"]
[EventType "swiss"]
[EventCountry "AUS"]
[SourceTitle "playchess.com"]
[Source "ChessBase"]
[SourceQuality "1"]
[TimeControl "5400+30"]

{[%evp 9,88,16,22,1,17,10,18,11,33,29,39,34,34,25,88,65,57,56,52,53,164,152,180,0,0,0,183,154,161,38,46,67,48,0,0,-22,36,26,16,16,29,30,26,20,29,21,23,0,0,-99,0,0,0,0,0,-129,-139,-121,-140,-391,-391,-581,-536,-596,-295,-564,-543,-962,-1422,-1837,-108,-1785,-1660,-29952,-29952,-29945,-29946,-29975,-29975,-5114,-5114]} 1. d4 {[%emt 0:00:28]} f5 {[%emt 0:01:33]} 2. Nf3 {[%emt 0:00:38]} Nf6 {[%emt 0:00:05]} 3. e3 {[%emt 0:00:43]} g6 {[%emt 0:02:58]} 4. b3 {[%emt 0:00:20]} Bg7 {[%emt 0:00:45]} 5. Bb2 {[%emt 0:00:06]} b6 {[%emt 0:04:42]} 6. Be2 {[%emt 0:02:55] A80: Dutch Defence: Unusual White second moves.} Bb7 {[%emt 0:00:13]} 7. c4 {[%emt 0:02:33]} O-O {[%emt 0:04:49]} 8. O-O {[%emt 0:01:35] The position is equal.} Ne4 {[%emt 0:05:20]} 9. Nfd2 {[%emt 0:02:58] [#]} e6 $146 {[%emt 0:01:21]} ({Predecessor:} 9... Bh6 10. Nxe4 fxe4 11. d5 c5 12. Nc3 Bg7 13. Qc2 e6 14. Rad1 exd5 15. cxd5 Qe7 {1-0 (38) Fabbri,A (2194)-Spicak,K (2054) Warsaw 2011}) 10. Nxe4 {[%emt 0:04:36]} fxe4 {[%emt 0:02:15]} 11. Nc3 {[%emt 0:08:16]} c5 {[%emt 0:17:32]} (11... a5 $11) 12. d5 exd5 13. cxd5 {[%emt 1:11:52]} Re8 {[%emt 0:00:54]} 14. Qd2 {[%emt 0:00:00]} Na6 {[%emt 0:55:03]} (14... d6 $14) 15. f3 $1 $18 {[%emt 0:01:00]} exf3 {[%emt 0:00:00]} 16. Bxf3 {[%emt 0:00:00]} (16. Rxf3 $18 {Hoping for Raf1.} d6 17. Raf1) 16... d6 $1 $11 {[%emt 0:00:00]} 17. Ne4 {[%emt 0:01:00]} Bxb2 {[%emt 0:00:00]} (17... Qe7 $1 $11 {and Black stays safe.}) 18. Qxb2 $18 {[%emt 0:00:00] Nf6+ is the strong threat.} Re5 {[%emt 0:02:00] [#]} 19. Nf2 {[%emt 0:00:00]} ({White must play} 19. Bg4 $1 $18 {[%cal Rg4e6] Black must now prevent Be6+.} Rxe4 20. Be6+ Rxe6 21. dxe6) 19... Bc8 (19... Rxe3 $2 20. Ng4 Qg5 21. Nf6+ (21. Nxe3 Qxe3+ 22. Kh1 Re8 $14) 21... Kh8 22. Ng4+ Kg8 23. Nf6+ (23. Nxe3 Qxe3+ 24. Kh1 Re8 $16) 23... Kh8 24. Nd7+ Kg8 25. Bg4 $1 {[%mdl 512]} Bxd5 26. Nf6+ Kh8 27. Ne8+ Re5 28. Rf8+ Bg8 29. Be6 Rxe8 30. Rxe8 Qe3+ 31. Kh1 $18) (19... Bxd5 20. Bxd5+ Rxd5 21. Ng4 $18) 20. e4 {[%emt 0:01:30][%cal Be3e4,Be4e5,Be5e6][%mdl 32]} Nc7 {[%emt 0:00:00]} 21. Nd3 {[%emt 0:00:00]} (21. a4 $14 {feels stronger.}) 21... Re8 $11 {[%emt 0:00:00]} 22. Rad1 {[%emt 0:00:00]} Nb5 {[%emt 0:00:00]} (22... Ba6 $11) 23. e5 $14 {[%emt 0:00:00] Black should prevent e6.} Nd4 {[%emt 0:00:00]} 24. e6 {[%emt 0:00:00] Threatening Be4.} Ba6 {[%emt 0:00:00]} 25. Be4 {[%emt 0:00:00]} Qg5 {[%emt 0:00:00]} 26. Qd2 {[%emt 0:00:00] Against Qe3+} ({Of course not} 26. Qf2 Rf8 27. Qe1 Rxf1+ 28. Qxf1 Rf8 $15) 26... Qxd2 {[%emt 0:00:00] The board is on fire.} 27. Rxd2 {[%emt 0:00:00]} Rf8 {[%emt 0:00:00]} 28. Rxf8+ {[%emt 0:00:00]} Rxf8 {[%emt 0:00:00]} 29. Rf2 {[%emt 0:00:00]} (29. g3 $11) 29... Rxf2 {[%emt 0:00:00]} ({Better is} 29... Bb7 $1 $17 {[%cal Od4e6]} 30. Rd2 Nxe6 $1 31. dxe6 Bxe4) 30. Kxf2 $17 {[%emt 0:00:00][%mdl 4096] Endgame KBN-KBN} Nb5 {[%emt 0:00:00]} 31. Ke3 {[%emt 0:00:00]} Nc3 {[%emt 0:00:00]} 32. h4 {[%emt 0:00:00]} (32. a4 $11 {keeps the balance.}) 32... Bxd3 {[%emt 0:00:00]} ({Much weaker is} 32... Kf8 $6 33. a3 $11) 33. Kxd3 {[%emt 0:00:00]} Nxa2 {[%emt 0:05:28] KB-KN} 34. h5 $2 {[%mdl 8192]} (34. g4 $17) 34... gxh5 $19 {[%emt 0:00:01]} 35. Bxh7+ {[%emt 0:00:00]} (35. Ke3 {might work better.} Nc3 36. Kd3 Nxe4 37. Kxe4) 35... Kg7 {[%emt 0:03:01]} (35... Kxh7 $2 36. e7 $18) 36. Be4 {[%emt 0:03:36]} Nb4+ (36... h4 $142 37. Bf3 Kf6) 37. Ke3 $2 {[%emt 0:04:54]} (37. Kc4) 37... b5 {[%emt 0:00:00][%cal Bb6b5,Bb5a4,Ba4a3,Ba3a2][%mdl 32]} 38. g3 {[%emt 0:00:00] [#]} a5 $1 {[%emt 0:00:00] aiming for ...a4.} 39. Kd2 {[%emt 0:00:00] [#]} Kf6 $2 {[%emt 0:00:00]} (39... a4 $1 $19 {[%cal Ra4a3] is more deadly. Strongly threatening ...a3.} 40. bxa4 bxa4) 40. Bf3 $2 {[%emt 0:00:00][%mdl 8192]} (40. Kc1 $17) 40... a4 {[%emt 0:00:00]} 41. bxa4 {[%emt 0:00:00]} bxa4 {[%emt 0:00:00]} 42. Kc3 {[%emt 0:02:30]} a3 43. Kb3 {[%emt 0:00:00]} a2 {[%emt 0:00:00]} 44. Kb2 {[%emt 0:01:00]} c4 {Quite a comeback for Black.  Weighted Error Value: White=0.99/Black=0.38} 0-1

[Event "Doeberl Cup 2022"]
[Site "Canberra"]
[Date "2022.04.15"]
[Round "4.7"]
[White "Wallis, Christopher"]
[Black "Rodgers, Jack"]
[Result "1-0"]
[ECO "A56"]
[WhiteElo "2337"]
[BlackElo "2083"]
[Annotator "TA"]
[PlyCount "65"]
[EventDate "2022.04.14"]
[EventType "swiss"]
[EventCountry "AUS"]
[SourceTitle "playchess.com"]
[Source "ChessBase"]
[SourceQuality "1"]
[TimeControl "5400+30"]

{[%evp 11,64,55,63,67,56,49,56,36,60,61,62,67,110,107,127,129,122,115,141,133,162,147,183,180,203,170,160,179,171,166,156,133,117,92,551,531,516,502,509,518,519,521,664,450,1450,1312,29974,29973,29989,29990,29996,2216,29997,29998,29999]} 1. d4 {[%emt 1:04:30][%cal Bd2d4,Bd4d5][%mdl 32]} Nf6 {[%emt 1:03:21]} 2. c4 {[%emt 0:00:30]} c5 {[%emt 0:00:30]} 3. d5 {[%emt 0:00:30]} e5 {[%emt 0:00:30]} 4. Nc3 {[%emt 0:00:30]} d6 {[%emt 0:00:30]} 5. e4 {[%emt 0:00:30]} Be7 {[%emt 0:00:30]} 6. g3 {[%emt 0:00:30]} Na6 {[%emt 0:00:30]} 7. Bg2 {[%emt 0:00:30] A56: Czech Benoni.} Nc7 {[%emt 0:00:30]} 8. a4 {[%emt 0:00:30]} O-O {[%emt 0:00:30]} 9. Nf3 {[%emt 0:00:30][%cal Bg1f3,Bf3e1,Be1d3][%mdl 32] White is slightly better.} Rb8 {[%emt 0:00:30]} 10. O-O {[%emt 0:00:30] [#]} Nfe8 $146 {[%emt 0:00:30]} ({Predecessor:} 10... b6 11. Ne1 a6 12. Nd3 b5 13. b3 Nd7 14. Qc2 b4 15. Nd1 Bf6 16. Ne3 g6 17. Bb2 Bg7 {1-0 (71) Schneider Zinner,H (2375)-Schwabeneder,F (2369) St Johann im Pongau 2016}) 11. Ne1 {[%emt 0:00:30]} g6 {[%emt 0:00:30]} 12. Nd3 {[%emt 0:00:30]} f5 {[%emt 0:00:30]} 13. f4 {[%emt 0:00:30]} exf4 {[%emt 0:00:30]} 14. Bxf4 {[%emt 0:00:30]} fxe4 {[%emt 0:00:30]} 15. Nxe4 {[%emt 0:00:30]} b6 {[%emt 0:00:30]} 16. Qd2 {[%emt 0:00:30]} Bf5 {[%emt 0:00:30]} 17. Bh6 {[%emt 0:00:30]} Ng7 {[%emt 0:00:30]} 18. Qc3 {[%emt 0:00:30][%csl Gh6][%cal Rc3g7]} Nce8 {[%emt 0:00:30]} 19. Nf4 $36 {[%emt 0:00:30][%mdl 2048] White is in control. 0x0.00138d2c057ddp-1022s more active pieces.} Bxe4 {[%emt 0:00:30]} 20. Bxe4 {[%emt 0:00:30] Threatens to win with Ne6.} Bf6 {[%emt 0:00:30]} 21. Qc2 {[%emt 0:00:30]} ({Don't take} 21. Ne6 Nxe6 22. dxe6 Ng7 $16) 21... Nc7 {[%emt 0:00:30]} 22. Kh1 {[%emt 0:00:30]} Bg5 $2 {[%emt 0:03:20][%mdl 8192] [#] Loses the game.} (22... Qd7 $16 {is a better chance.}) 23. Bxg6 $1 $18 {[%emt 0:09:44][%mdl 512]} hxg6 {[%emt 0:08:07]} 24. Bxg7 {[%emt 0:17:46]} Kxg7 {[%emt 0:17:42]} 25. Qxg6+ {[%emt 0:00:30]} Kh8 {[%emt 0:00:30]} 26. Qh5+ {[%emt 0:00:30]} Kg7 {[%emt 0:00:30]} 27. Rae1 {[%emt 0:00:00][%cal Oe1e6,Ba1e1,Be1e4,Be4g4,Bg4g7][%mdl 32] Black must now prevent Re6!} Bf6 {[%emt 0:00:00]} (27... Kg8 $142 28. Ng6 Rxf1+ 29. Rxf1 Bf6) 28. Re4 {[%emt 0:00:00] Intending Qg6+ and mate.} Kg8 {[%emt 0:00:00]} 29. Ng6 {[%emt 0:00:29]} (29. Ne6 Nxe6 30. dxe6 Rb7 $11) 29... Rf7 {[%emt 0:00:00]} 30. Rg4 {[%emt 0:00:05]} Rg7 {[%emt 0:00:00]} 31. Qh8+ {[%emt 0:01:16]} ({Stronger than} 31. Rxf6 Qxf6 32. Qh8+ Kf7 33. Ne5+ Qxe5 $17) 31... Kf7 {[%emt 0:00:00] [#]} 32. Ne5+ $1 {[%emt 0:00:22][%mdl 512]} dxe5 {[%emt 0:00:00]} (32... Ke7 33. Rxg7+) 33. Rxg7# {[%emt 0:01:18] Weighted Error Value: White=0.11 (very precise) /Black=0.65} 1-0

[Event "Doeberl Cup 2022"]
[Site "Canberra"]
[Date "2022.04.16"]
[Round "5.1"]
[White "Fernandez, Daniel Howard"]
[Black "Cheng, Bobby"]
[Result "1-0"]
[ECO "C02"]
[WhiteElo "2487"]
[BlackElo "2550"]
[Annotator "TA"]
[PlyCount "101"]
[EventDate "2022.04.14"]
[EventType "swiss"]
[EventCountry "AUS"]
[SourceTitle "playchess.com"]
[Source "ChessBase"]
[SourceQuality "1"]
[TimeControl "5400+30"]

{[%evp 11,101,0,24,-18,-32,-16,-22,-27,4,-27,0,3,26,26,31,11,58,58,58,77,48,31,88,74,91,64,60,56,54,46,77,72,73,77,183,169,164,167,212,193,217,113,211,211,249,208,208,221,213,110,106,104,143,168,156,86,64,30,30,30,114,114,121,50,60,56,75,26,73,17,18,8,8,8,17,8,8,8,8,8,8,8,1206,297,29983,29984,29990,29989,29989,29990,29991,29992]} 1. e4 {[%emt 0:08:34]} e6 {[%emt 0:00:06]} 2. d4 {[%emt 0:00:06]} d5 {[%emt 0:00:03]} 3. e5 {[%emt 0:00:27]} c5 {[%emt 0:00:07][%cal Bc7c5,Bc5d4][%mdl 32]} 4. c3 {[%emt 0:00:02]} Qb6 {[%emt 0:00:27]} 5. Nf3 {[%emt 0:00:05]} Nc6 {[%emt 0:00:07]} 6. a3 {[%emt 0:00:06]} Bd7 {[%emt 0:01:59]} 7. Bd3 {[%emt 0:12:28] C02: French: Advance Variation.} (7. b4 $5 {[%cal Rb4c5]}) 7... cxd4 {[%emt 0:02:03][%cal Og7g5]} 8. O-O {[%emt 0:00:03]} Nge7 {[%emt 0:06:54]} 9. Re1 {[%emt 0:03:35] The position is equal.} a6 {[%emt 0:07:46]} 10. b4 {[%emt 0:01:32]} Rc8 {[%emt 0:03:08] [#]} 11. Bb2 $146 {[%emt 0:02:11][%cal Rc3d4]} ({Predecessor:} 11. Nxd4 Nxd4 12. Be3 Bb5 13. Bxd4 Qc7 14. Bxb5+ axb5 15. Nd2 Nf5 16. Qe2 Qd7 17. Nb3 {1-0 (60) Idani,P (2627)-Mohamad,E (2356) Chess.com INT 2021}) 11... Na5 {[%emt 0:01:48]} 12. Nxd4 {[%emt 0:00:51]} Nc4 {[%emt 0:08:13]} 13. Bc1 {[%emt 0:02:59]} Nc6 {[%emt 0:11:02]} (13... Ng6 $11) 14. Nf3 $14 {[%emt 0:01:53]} Qc7 {[%emt 0:05:25][%cal Rc4e5]} 15. Bxc4 {[%emt 0:09:13]} dxc4 {[%emt 0:00:07]} 16. Nbd2 {[%emt 0:00:05]} b5 {[%emt 0:02:33]} (16... Ne7 $14) 17. a4 {[%emt 0:02:36]} Be7 {[%emt 0:03:13]} 18. axb5 {[%emt 0:09:00]} axb5 {[%emt 0:00:01]} 19. Ne4 {[%emt 0:00:09]} O-O {[%emt 0:00:14]} 20. Bg5 {[%emt 0:00:31]} Ra8 {[%emt 0:11:17]} 21. Qd2 {[%emt 0:00:52][%cal Oe4f6] Black must now prevent Nf6+!} Rxa1 {[%emt 0:01:19]} 22. Rxa1 {[%emt 0:00:03][%cal Oe4f6]} f6 {[%emt 0:00:10]} (22... Rd8 $16) 23. exf6 $18 {[%emt 0:04:18]} gxf6 {[%emt 0:00:01]} 24. Bf4 {[%emt 0:00:21]} Qc8 {[%emt 0:01:55]} 25. Bd6 {[%emt 0:01:56]} Qd8 {[%emt 0:04:11]} 26. Nd4 {[%emt 0:08:43]} (26. Ra6 $18) 26... Bxd6 {[%emt 0:06:19]} (26... f5 $16) 27. Nxd6 {[%emt 0:00:25][%cal Be4d6,Bd6b7,Bb7c5][%mdl 32]} Ne5 {[%emt 0:00:15]} 28. Nb7 {[%emt 0:01:08] Pair of Knights!} Qe8 {[%emt 0:07:47]} 29. Nc5 {[%emt 0:01:05]} Nd3 {[%emt 0:00:05]} 30. Ra7 {[%emt 0:06:26]} (30. Nxd3 $18 cxd3 31. Qxd3) 30... Nxc5 $16 {[%emt 0:02:04]} 31. bxc5 {[%emt 0:00:03] [#] Threatens to win with h3.} e5 {[%emt 0:00:08]} 32. Nc2 {[%emt 0:00:36]} Bc6 {[%emt 0:02:02]} 33. Qh6 {[%emt 0:01:44] 0x0.00138d2c057ddp-1022s more active pieces.} ({White should play} 33. Ra6) 33... Rf7 {[%emt 0:01:25]} 34. Rxf7 {[%emt 0:00:34]} (34. Ra1 $5 {[%cal Rc2e3]}) 34... Qxf7 {[%emt 0:00:03]} 35. Nb4 {[%emt 0:03:48]} Qe6 {[%emt 0:00:31]} (35... Ba8 $1 $11) 36. h3 {[%emt 0:01:52]} Be4 {[%emt 0:00:49]} 37. Kh2 {[%emt 0:02:04]} (37. Qe3 $16 Bc6 38. Qh6) 37... Kf7 $14 {[%emt 0:01:24]} 38. f3 {[%emt 0:00:26]} Bf5 {[%emt 0:00:21]} 39. g4 {[%emt 0:02:40]} Bg6 {[%emt 0:01:36]} 40. Qe3 {[%emt 0:00:14]} (40. Kg3 $16) 40... f5 $1 $11 {[%emt 0:01:05]} 41. c6 $36 {[%emt 0:01:35][%mdl 2048] White has the initiative.} Qd6 $1 {[%emt 0:00:21]} 42. h4 {[%emt 0:03:52][%cal Bh3h4,Bh4h5][%mdl 32] [#] And now h5 would win.} h5 {[%emt 0:04:26]} 43. gxh5 {[%emt 0:00:24]} Bxh5 {[%emt 0:00:44]} 44. Qg5 {[%emt 0:00:47][%csl LRf5,LRh5]} Bg6 {[%emt 0:02:24]} 45. h5 {[%emt 0:00:32]} Bh7 {[%emt 0:00:08]} (45... e4+ $2 46. Kg2 Bh7 47. fxe4 $18) 46. Qe3 {[%emt 0:02:22] Hoping for Qa7+.} Kg7 $2 {[%emt 0:04:50][%mdl 8192] This costs Black the game.} (46... Kf8 $11) 47. Kg2 $2 {[%emt 0:01:06]} ({Stronger than} 47. Qa7+ Kh6 $11) (47. f4 Bg8 48. Qxe5+ Qxe5 49. fxe5) 47... Qe7 {[%emt 0:00:32]} (47... Kf8 $18 48. Qg5 f4) 48. Nd5 {[%emt 0:00:24] White mates.} Qe6 {[%emt 0:00:29]} 49. Qg5+ {[%emt 0:00:47]} Kf7 {[%emt 0:00:19]} 50. Qd8 {[%emt 0:00:43]} e4 {[%emt 0:00:42]} 51. Qd7+ {[%emt 0:00:07] Weighted Error Value: White=0.32/Black=0.32} 1-0

[Event "Doeberl Cup 2022"]
[Site "Canberra"]
[Date "2022.04.16"]
[Round "5.2"]
[White "Kuybokarov, Temur"]
[Black "Melkumyan, Hrant"]
[Result "1/2-1/2"]
[ECO "C77"]
[WhiteElo "2576"]
[BlackElo "2649"]
[Annotator "TA"]
[PlyCount "131"]
[EventDate "2022.04.14"]
[EventType "swiss"]
[EventCountry "AUS"]
[SourceTitle "playchess.com"]
[Source "ChessBase"]
[SourceQuality "1"]
[TimeControl "5400+30"]

{[%evp 16,131,7,5,10,18,12,10,16,14,18,0,0,6,21,27,61,12,11,15,34,0,31,26,29,9,31,26,37,20,20,14,21,21,25,13,17,16,51,48,51,52,66,68,86,64,71,56,75,6,47,45,39,42,51,42,91,91,131,137,129,124,120,118,122,87,151,148,156,52,47,0,0,0,0,0,72,72,72,72,72,72,187,72,492,0,179,0,479,179,448,179,441,0,0,-8,-8,-8,-8,-8,-8,-8,-8,-8,-8,-8,-8,-8,-8,-8,-8,-8,0,0,0,0,0,0]} 1. e4 {[%emt 0:04:12]} e5 {[%emt 0:02:43]} 2. Nf3 {[%emt 0:00:11]} Nc6 {[%emt 0:00:28]} 3. Bb5 {[%emt 0:00:30][%cal Bf1b5,Bb5a4,Ba4b3][%mdl 32]} a6 {[%emt 0:00:30]} 4. Ba4 {[%emt 0:00:30]} Nf6 {[%emt 0:00:30]} 5. O-O {[%emt 0:00:00]} Be7 {[%emt 0:00:00]} 6. d3 {[%emt 0:00:00]} b5 {[%emt 0:00:10]} 7. Bb3 {[%emt 0:00:04]} d6 {[%emt 0:00:09]} 8. a3 {[%emt 0:00:56]} O-O {[%emt 0:00:22]} 9. Nc3 {[%emt 0:00:22]} Na5 {[%emt 0:00:40] C77: Ruy Lopez: 3...a6 4 Ba4 Nf6, unusual lines.} 10. Ba2 {[%emt 0:00:10]} Be6 {[%emt 0:00:12]} 11. b4 {[%emt 0:01:20]} Bxa2 {[%emt 0:00:10]} 12. Rxa2 {[%emt 0:00:30]} Nc6 {[%emt 0:00:30]} 13. Nd5 {[%emt 0:00:30]} Nxd5 {[%emt 0:00:30]} 14. exd5 {[%emt 0:00:30]} Nd4 {[%emt 0:00:30]} 15. Nxd4 {[%emt 0:00:30]} exd4 {[%emt 0:00:30]} 16. Qg4 {[%emt 0:00:30]} (16. Bb2 $14) 16... Bf6 $11 {[%emt 0:00:30] [#]} 17. Bd2 $146 {[%emt 0:00:30]} ({Predecessor:} 17. a4 a5 18. axb5 axb4 19. Rb2 Ra4 20. Bd2 Qa8 21. Qd7 Ra7 22. Qc6 Rb8 23. Rxb4 {½-½ (44) Anand,V (2803)-Kravtsiv,M (2621) Berlin 2015}) 17... Qc8 {[%emt 0:00:30]} 18. Qf3 {[%emt 0:00:30]} Re8 {[%emt 0:00:30]} 19. a4 {[%emt 0:00:30]} Re5 {[%emt 0:00:30]} 20. Bf4 {[%emt 0:00:30]} Re8 {[%emt 0:00:30]} 21. Rfa1 {[%emt 0:00:30]} Rb8 {[%emt 0:00:30]} 22. axb5 {[%emt 0:00:30]} Rxb5 {[%emt 0:00:30]} 23. h3 {[%emt 0:00:30][%cal Bh2h3,Bh3h4][%mdl 32]} Rb6 {[%emt 0:00:30]} 24. Bd2 {[%emt 0:00:30]} Be5 {[%emt 0:00:30]} 25. h4 {[%emt 0:00:30]} h6 {[%emt 0:00:30]} 26. g4 {[%emt 0:00:30]} Qb7 {[%emt 0:00:30]} 27. Kg2 {[%emt 0:00:30]} Rc8 {[%emt 0:00:30]} 28. Qe4 {[%emt 0:00:30]} f5 {[%emt 0:00:30]} 29. Qxf5 {[%emt 0:00:30] Black must now prevent Qe6+.} Qxd5+ {[%emt 0:00:30]} 30. Qf3 {[%emt 0:00:30]} Qxf3+ {[%emt 0:00:30]} 31. Kxf3 {[%emt 1:07:05]} Rf8+ {[%emt 1:01:05]} 32. Ke2 {[%emt 0:04:52]} (32. Kg2 $16) 32... Bf4 {[%emt 0:00:09]} 33. Be1 {[%emt 0:01:58]} ({Much weaker is} 33. Rxa6 Bxd2 34. Rxb6 cxb6 $11) 33... Re8+ {[%emt 0:01:43]} 34. Kd1 {[%emt 0:01:09]} Rb5 {[%emt 0:01:05]} 35. Ra5 {[%emt 0:00:30]} h5 {[%emt 0:00:30]} (35... g6 $14 {feels stronger.}) 36. gxh5 $16 {[%emt 0:00:30]} Kh7 {[%emt 0:00:30]} 37. Rxb5 $1 {[%emt 0:00:30]} ({Reject} 37. Rxa6 $6 Rxh5 38. Ra8 Re7 $11) 37... axb5 {[%emt 0:00:30][%mdl 4096] Endgame KRB-KRB} 38. Ra7 $1 {[%emt 0:00:30]} d5 {[%emt 0:00:30]} 39. Rb7 {[%emt 0:00:30]} c6 {[%emt 0:00:30]} 40. Rf7 {[%emt 0:00:30] Inhibits Rf8.} Bh6 {[%emt 0:00:30]} (40... Bd6 $142) 41. f4 {[%emt 0:00:30]} Re6 {[%emt 0:00:30]} 42. Bf2 {[%emt 0:00:30]} ({White has to play} 42. f5 $1 $16 {[%cal Rf5e6]} Rf6 43. Rc7 (43. Rxf6 gxf6 44. Ke2 Bf4 $14)) 42... Rf6 $14 {[%emt 0:00:30]} 43. Rxf6 {[%emt 0:00:30]} (43. Rd7 $14 {might be stronger.}) 43... gxf6 $11 {[%emt 0:00:30]} 44. Bxd4 $14 {[%emt 0:00:30] KB-KB} f5 {[%emt 0:00:30]} 45. Ke2 {[%emt 0:00:30]} Bxf4 {[%emt 0:00:30]} (45... Bf8 $1 $11 {keeps the balance.}) 46. Kf3 {[%emt 0:00:30]} Bd6 {[%emt 0:00:30]} 47. Bc5 {[%emt 0:00:30]} Be5 {[%emt 0:00:30]} 48. Bf8 {[%emt 0:00:30][%cal Od3d4] aiming for d4!} Bc7 {[%emt 0:00:30] [#]} (48... Kg8 $16 49. Bh6 Bc3) 49. Ke3 {[%emt 0:00:30]} (49. h6 $1 $18) 49... Be5 {[%emt 0:00:30][%mdl 8192]} (49... Bg3 $16 {is a better chance.}) 50. Kf3 $2 {[%emt 0:00:30]} (50. d4 Bg3 51. Kf3) 50... Bc7 $18 {[%emt 0:00:30] [#]} 51. Ke3 $2 {[%emt 0:00:30]} (51. h6 $1) 51... Be5 {[%emt 0:00:30]} 52. h6 $2 {[%emt 0:00:30]} (52. d4 Bg3 53. Kf3) 52... Kg6 $2 {[%emt 0:00:30]} (52... d4+ {is a better defense.} 53. Kf3 Kg6) 53. Bg7 $2 {[%emt 0:00:30]} (53. h5+ Kh7 54. d4) 53... Bd6 $2 {[%emt 0:00:30]} (53... d4+ 54. Kf3 Bd6 55. Bxd4 Bxb4) 54. Kd4 $2 {[%emt 0:00:30]} (54. d4 $18 Bg3 55. h5+ Kh7 56. Be5) 54... f4 $1 $11 {[%emt 0:00:30] The position is equal.} 55. c4 {[%emt 0:00:30]} Bxb4 {[%emt 0:00:30] Hoping for ...c5+.} 56. cxd5 {[%emt 0:00:30]} cxd5 {[%emt 0:00:30]} 57. Be5 {[%emt 0:00:30]} Bd2 {[%emt 0:00:30] Threatens to win with ...f3.} 58. Kxd5 {[%emt 0:00:30]} f3 {[%emt 0:00:30]} 59. Bg3 {[%emt 0:00:30]} Be3 {[%emt 0:00:30]} 60. d4 $1 {[%emt 0:00:30]} Kxh6 {[%emt 0:00:30] Strongly threatening ...Kh5.} 61. Ke4 $1 {[%emt 0:00:30][%csl LRe3,LRf3] [#]} f2 $1 {[%emt 0:00:30]} 62. Bxf2 {[%emt 0:00:30]} Bxf2 {[%emt 0:00:30]} 63. Kd5 $1 {[%emt 0:00:30]} Bxd4 {[%emt 0:00:30]} 64. Kxd4 {[%emt 0:00:30]} Kh5 {[%emt 0:00:30]} 65. Kc5 {[%emt 0:00:30]} Kxh4 {[%emt 0:00:30]} 66. Kxb5 {[%emt 0:00:30] Weighted Error Value: White=0.34/Black=0.31} 1/2-1/2

[Event "Doeberl Cup 2022"]
[Site "Canberra"]
[Date "2022.04.16"]
[Round "5.3"]
[White "Sardana, Rishi"]
[Black "Winkelman, Albert"]
[Result "1/2-1/2"]
[ECO "C84"]
[WhiteElo "2461"]
[BlackElo "2257"]
[Annotator "TA"]
[PlyCount "80"]
[EventDate "2022.04.14"]
[EventType "swiss"]
[EventCountry "AUS"]
[SourceTitle "playchess.com"]
[Source "ChessBase"]
[SourceQuality "1"]
[TimeControl "5400+30"]

{[%evp 15,80,14,30,16,18,0,0,2,30,-38,22,39,34,48,35,61,42,0,6,7,1,0,0,0,0,4,6,-27,0,0,0,0,0,0,0,0,0,0,22,27,30,17,20,12,13,25,27,21,20,15,20,21,41,0,12,6,6,3,8,3,7,0,0,0,4,0,0]} 1. e4 {[%emt 0:00:05]} e5 {[%emt 0:00:09]} 2. Nf3 {[%emt 0:00:07]} Nc6 {[%emt 0:00:09]} 3. Bb5 {[%emt 0:00:04]} a6 {[%emt 0:00:09]} 4. Ba4 {[%emt 0:00:05]} Nf6 {[%emt 0:00:09]} 5. O-O {[%emt 0:00:10]} Be7 {[%emt 0:00:10]} 6. d3 {[%emt 0:00:07]} b5 {[%emt 0:00:12]} 7. Bb3 {[%emt 0:00:06]} O-O {[%emt 0:01:37]} 8. a4 {[%emt 0:01:25]} Bb7 {[%emt 0:00:33]} 9. c3 {[%emt 0:00:33] C84: Closed Ruy Lopez: Unusual White 6th moves.} d5 {[%emt 0:03:28]} 10. exd5 {[%emt 0:10:51]} Nxd5 {[%emt 0:00:09]} 11. Re1 {[%emt 0:01:57]} Bf6 {[%emt 0:00:14] [#]} 12. h4 $146 {[%emt 0:08:51]} (12. Nbd2 $11) ({Predecessor:} 12. Qc2 b4 13. a5 bxc3 14. bxc3 Ndb4 15. cxb4 e4 16. Rxe4 Bxa1 17. Nc3 Qd7 18. Rh4 h6 {½-½ (29) Sethuraman,S (2441)-Grandelius,N (2464) Vung Tau 2008}) 12... Qd7 {[%emt 0:03:40]} (12... b4 $15) 13. Nbd2 $11 {[%emt 0:08:08]} Rad8 {[%emt 0:05:37]} 14. Ne4 {[%emt 0:00:14]} Qg4 {[%emt 0:01:46]} 15. axb5 {[%emt 0:06:29]} axb5 {[%emt 0:00:26]} 16. Nfg5 {[%emt 0:10:26]} Qxd1 {[%emt 0:02:23]} (16... Qxh4 $2 17. g3 Qh6 {[#]} 18. Nxf7 $1 $18 {[%mdl 512]}) 17. Rxd1 {[%emt 0:00:06]} Be7 {[%emt 0:00:34]} 18. Be3 {[%emt 0:06:43]} h6 {[%emt 0:03:34]} 19. Nf3 {[%emt 0:00:07]} Nxe3 {[%emt 0:00:28]} 20. fxe3 {[%emt 0:00:08]} Kh8 {[%emt 0:03:28]} 21. g4 {[%emt 0:14:46]} f6 {[%emt 0:12:08]} (21... Bc8 $5 {[%cal Rc8g4]} 22. Nf2 f5 $15) 22. h5 {[%emt 0:06:09] Nh4 is the strong threat.} f5 {[%emt 0:00:38]} 23. gxf5 {[%emt 0:00:07]} Rxf5 {[%emt 0:00:17]} 24. Kg2 {[%emt 0:00:20]} Rdf8 {[%emt 0:02:33]} ({Don't play} 24... Rxh5 25. Be6 $16 (25. Ng3 e4 $14)) 25. Rf1 {[%emt 0:00:26]} Nd8 {[%emt 0:00:18] Against Be6} ({Don't do} 25... Rxh5 26. Be6 $16 (26. Ng3 e4 $14)) 26. Ra7 {[%emt 0:01:58][%cal Oa7b7]} Bd6 {[%emt 0:07:37] [#]} 27. Rxb7 $1 {[%emt 0:12:05]} Nxb7 {[%emt 0:00:25]} 28. Be6 {[%emt 0:00:05]} Rxh5 {[%emt 0:02:56]} 29. Bg4 {[%emt 0:00:09]} Rhf5 {[%emt 0:00:23]} 30. Bxf5 {[%emt 0:00:04]} Rxf5 {[%emt 0:00:12]} 31. b4 {[%emt 0:00:15]} Rf8 {[%emt 0:15:38]} 32. Ra1 {[%emt 0:00:05][%mdl 1024] White has compensation.} Kg8 {[%emt 0:00:20]} 33. Ra6 {[%emt 0:03:55]} Re8 {[%emt 0:01:13]} 34. Nh4 {[%emt 0:02:00]} Bf8 {[%emt 0:02:32] The position is equal.} 35. Rc6 {[%emt 0:01:02]} Rc8 {[%emt 0:05:14]} 36. Ng6 {[%emt 0:01:09]} Nd8 $1 {[%emt 0:00:51]} 37. Ra6 {[%emt 0:00:04]} Nf7 {[%emt 0:01:16]} 38. Rc6 {[%emt 0:00:26]} Nd8 $1 {[%emt 0:01:08]} 39. Ra6 {[%emt 0:00:05]} Nf7 {[%emt 0:00:07]} 40. Rc6 {[%emt 0:06:14]} Nd8 $1 {[%emt 0:00:08] Weighted Error Value: White=0.10 (very precise) /Black=0.08 (flawless)} 1/2-1/2